fUSD/lending_fUSD_20260627
["ID","MTS","AMOUNT","RATE_DAILY","PERIOD"]
[426512133,1782499840000,-59.41647293,0.00026247,2]
[426512139,1782499840000,-428.37597109,0.00026247,2]
[426512136,1782499840000,-412.82286669,0.00026247,2]
[426512131,1782499840000,-477.85223838,0.00026247,2]
[426512135,1782499840000,-263.72149123,0.00026247,2]
[426512134,1782499840000,-412.51812383,0.00026247,2]
[426512138,1782499840000,-327.03893545,0.00026247,2]
[426512166,1782499841000,-500.0,0.00029799,2]
[426512167,1782499841000,-500.0,0.00029799,2]
[426512164,1782499841000,-500.0,0.00029799,2]
[426512163,1782499841000,-500.0,0.00029799,2]
[426512160,1782499841000,-500.0,0.00029799,2]
[426512162,1782499841000,-500.0,0.00029799,2]
[426512161,1782499841000,-500.0,0.00029799,2]
[426512159,1782499841000,-500.0,0.00029799,2]
[426512158,1782499841000,-500.0,0.00029799,2]
[426512156,1782499841000,-249.9052991,0.00029511,2]
[426512157,1782499841000,-500.0,0.00029799,2]
[426512152,1782499841000,-218.0,0.00028388,5]
[426512155,1782499841000,-249.9052991,0.00029511,2]
[426512169,1782499841000,-500.0,0.00029799,2]
[426512154,1782499841000,-695.0,0.0002912,20]
[426512151,1782499841000,-1217.90261213,0.0002775,2]
[426512149,1782499841000,-2860.21,0.00027397,10]
[426512150,1782499841000,-500.0,0.000275,7]
[426512148,1782499841000,-3432.25,0.00027397,10]
[426512145,1782499841000,-5000.0,0.00027235,2]
[426512144,1782499841000,-150.0,0.00027086,5]
[426512143,1782499841000,-268.09329945,0.00026397,2]
[426512141,1782499841000,-157.47,0.00026262,2]
[426512140,1782499841000,-302.99971126,0.00026247,2]
[426512142,1782499841000,-172.04,0.00026293,2]
[426512153,1782499841000,-178.7288663,0.00028397,7]
[426512168,1782499841000,-500.0,0.00029799,2]
[426512146,1782499841000,-178.7288663,0.00027397,7]
[426512171,1782499841000,-500.0,0.00029799,2]
[426512170,1782499841000,-500.0,0.00029799,2]
[426512194,1782499841000,-500.0,0.00030099,7]
[426512196,1782499841000,-3320.38138873,0.000301,7]
[426512197,1782499841000,-146720.02406081,0.000301,7]
[426512193,1782499841000,-194.57278563,0.00030099,2]
[426512195,1782499841000,-112971.3524339,0.000301,2]
[426512190,1782499841000,-151.0,0.00030097,7]
[426512191,1782499841000,-238.76775515,0.00030099,2]
[426512192,1782499841000,-458.25916871,0.00030099,2]
[426512189,1782499841000,-465.86356327,0.0003009,2]
[426512188,1782499841000,-695.0,0.0003008,20]
[426512186,1782499841000,-153.612385,0.0003,2]
[426512187,1782499841000,-305.83299564,0.0003,2]
[426512147,1782499841000,-4118.7,0.00027397,10]
[426512184,1782499841000,-190.48390529,0.0003,2]
[426512173,1782499841000,-500.0,0.00029799,2]
[426512172,1782499841000,-500.0,0.00029799,2]
[426512175,1782499841000,-500.0,0.00029799,2]
[426512174,1782499841000,-500.0,0.00029799,2]
[426512177,1782499841000,-500.0,0.00029799,2]
[426512178,1782499841000,-500.0,0.00029799,2]
[426512176,1782499841000,-578.33224595,0.00029799,2]
[426512185,1782499841000,-67669.2922257,0.0003,2]
[426512180,1782499841000,-609.42934173,0.000298,2]
[426512182,1782499841000,-11600.0,0.000299,10]
[426512181,1782499841000,-5800.0,0.000298,10]
[426512183,1782499841000,-2149.42495523,0.0002998,2]
[426512179,1782499841000,-500.0,0.00029799,2]
[426512206,1782499843000,-11038.27634493,0.000301,7]
[426512199,1782499843000,-2383.5,0.0002999,10]
[426512201,1782499843000,-261.9613998,0.000301,7]
[426512207,1782499843000,-4660.59408473,0.000301,7]
[426512200,1782499843000,-3023.7963418,0.000301,7]
[426512209,1782499843000,-1275.96318891,0.000301,7]
[426512210,1782499843000,-938.26932677,0.000301,7]
[426512211,1782499843000,-1068.475,0.000301,7]
[426512213,1782499843000,-2099.213705,0.000301,7]
[426512212,1782499843000,-841.78985,0.000301,7]
[426512208,1782499843000,-5076.08934572,0.000301,7]
[426512217,1782499846000,-265.14221787,0.00026147,2]
[426512216,1782499846000,-531.1499993,0.00026147,2]
[426512218,1782499847000,-204.32843913,0.00026147,2]
[426512219,1782499847000,-1352.53246087,0.000301,7]
[426512228,1782499883000,1381.0,0.00037206,120]
[426512230,1782500209000,199.8,0.0002788,120]
[426512237,1782500713000,1000.0,0.00026431,120]
[426512275,1782501031000,-3071.32850921,0.00015,2]
[426512257,1782501031000,-258.49742669,0.000145,2]
[426512260,1782501031000,-1295.77381553,0.000145,2]
[426512258,1782501031000,-1062.59563543,0.000145,2]
[426512259,1782501031000,-2761.32742083,0.000145,2]
[426512276,1782501031000,-457.24022354,0.00015,2]
[426512266,1782501031000,-322.7083593,0.00014999,2]
[426512264,1782501031000,-500.0,0.00014999,2]
[426512268,1782501031000,-33.75890786,0.00014999,2]
[426512262,1782501031000,-249.0,0.000146,2]
[426512261,1782501031000,-55.7917865,0.000145,2]
[426512265,1782501031000,-177.2916407,0.00014999,2]
[426512263,1782501031000,-440.204,0.000147,2]
[426512271,1782501031000,-46793.65446004,0.00015,2]
[426512269,1782501031000,-167.13742861,0.00014999,2]
[426512270,1782501031000,-320.78141809,0.00014999,2]
[426512273,1782501031000,-18722.86694909,0.00015,2]
[426512272,1782501031000,-41051.28912613,0.00015,2]
[426512274,1782501031000,-1254.41808677,0.00015,2]
[426512267,1782501031000,-197.16689725,0.00014999,2]
[426512302,1782501037000,-16827.036363,0.00015,2]
[426512303,1782501037000,-6791.58068879,0.00015,2]
[426512305,1782501037000,-4301.64603971,0.00015,2]
[426512306,1782501037000,-5019.45516199,0.00015,2]
[426512304,1782501037000,-10101.47597986,0.00015,2]
[426512321,1782501039000,-298.24,0.00015,2]
[426512320,1782501039000,-637.38302335,0.00015,2]
[426512339,1782501045000,-298.47,0.00015,2]
[426512338,1782501045000,-5913.0,0.00015,2]
[426512337,1782501045000,-453.75190731,0.00015,2]
[426512352,1782501053000,169.38,0.00026868,120]
[426512353,1782501053000,169.38,0.00029854,120]
[426512365,1782501163000,150.53,0.00029499,120]
[426512371,1782501638000,50000.0,0.00037221,120]
[426512372,1782501875000,200000.0,0.00037221,120]
[426512373,1782501887000,200000.0,0.00037221,120]
[426512375,1782501900000,200000.0,0.00037221,120]
[426512382,1782501964000,18000.0,0.00037221,120]
[426512385,1782502041000,50000.0,0.00037221,120]
[426512386,1782502066000,50000.0,0.00037221,120]
[426512388,1782502107000,16190.74987886,0.00037221,120]
[426512411,1782502231000,-150.0,0.00014947,2]
[426512410,1782502231000,-152.0,0.000149,2]
[426512414,1782502231000,-500.0,0.00014999,2]
[426512415,1782502231000,-500.0,0.00014999,2]
[426512418,1782502231000,-500.0,0.00014999,2]
[426512427,1782502231000,-500.0,0.00014999,2]
[426512416,1782502231000,-500.0,0.00014999,2]
[426512412,1782502231000,-151.0,0.00014997,2]
[426512419,1782502231000,-500.0,0.00014999,2]
[426512425,1782502231000,-500.0,0.00014999,2]
[426512417,1782502231000,-500.0,0.00014999,2]
[426512413,1782502231000,-151.0,0.00014997,2]
[426512408,1782502231000,-1630.84148819,0.000149,2]
[426512409,1782502231000,-288.27225769,0.000149,2]
[426512406,1782502231000,-150.0,0.00014899,2]
[426512423,1782502231000,-500.0,0.00014999,2]
[426512404,1782502231000,-474.02747208,0.00014824,2]
[426512403,1782502231000,-82.25671687,0.00014806,2]
[426512399,1782502231000,-2303.04594477,0.000148,2]
[426512400,1782502231000,-2469.52658313,0.000148,2]
[426512401,1782502231000,-583.25671687,0.000148,2]
[426512402,1782502231000,-67.74328313,0.00014806,2]
[426512397,1782502231000,-1000.0,0.000148,2]
[426512398,1782502231000,-474.0274721,0.000148,2]
[426512405,1782502231000,-474.02747208,0.00014847,2]
[426512424,1782502231000,-500.0,0.00014999,2]
[426512407,1782502231000,-163941.8884,0.000149,2]
[426512426,1782502231000,-500.0,0.00014999,2]
[426512422,1782502231000,-500.0,0.00014999,2]
[426512450,1782502231000,-508.0,0.00015,2]
[426512447,1782502231000,-518.89485942,0.00014999,2]
[426512451,1782502231000,-328.1885014,0.00015,2]
[426512443,1782502231000,-500.0,0.00014999,2]
[426512444,1782502231000,-500.0,0.00014999,2]
[426512446,1782502231000,-42.25270081,0.00014999,2]
[426512448,1782502231000,-109920.36431123,0.00015,2]
[426512445,1782502231000,-500.0,0.00014999,2]
[426512442,1782502231000,-500.0,0.00014999,2]
[426512441,1782502231000,-224.54699267,0.00014999,2]
[426512438,1782502231000,-500.0,0.00014999,2]
[426512433,1782502231000,-460.72862798,0.00014999,2]
[426512452,1782502231000,-388.27807364,0.00015,2]
[426512434,1782502231000,-500.0,0.00014999,2]
[426512436,1782502231000,-500.0,0.00014999,2]
[426512437,1782502231000,-500.0,0.00014999,2]
[426512430,1782502231000,-500.0,0.00014999,2]
[426512432,1782502231000,-500.0,0.00014999,2]
[426512431,1782502231000,-500.0,0.00014999,2]
[426512429,1782502231000,-500.0,0.00014999,2]
[426512439,1782502231000,-500.0,0.00014999,2]
[426512440,1782502231000,-500.0,0.00014999,2]
[426512428,1782502231000,-500.0,0.00014999,2]
[426512420,1782502231000,-500.0,0.00014999,2]
[426512421,1782502231000,-500.0,0.00014999,2]
[426512435,1782502231000,-500.0,0.00014999,2]
[426512453,1782502232000,-452.9517951,0.00015,2]
[426512465,1782502237000,-6791.58068879,0.00015,2]
[426512466,1782502238000,-596.79223375,0.00015,2]
[426512473,1782502239000,-64638.90294772,0.00015,2]
[426512472,1782502239000,-742.47764884,0.00015,2]
[426512469,1782502239000,-605.90461152,0.00015,2]
[426512507,1782502240000,-1834.63096609,0.000199,2]
[426512499,1782502240000,-298.59,0.00018,2]
[426512501,1782502240000,-280.55,0.00019223,2]
[426512502,1782502240000,-500.0,0.00019375,2]
[426512498,1782502240000,-16355.44,0.00018,2]
[426512500,1782502240000,-288.27225766,0.0001807,2]
[426512503,1782502240000,-160.0,0.00019533,2]
[426512506,1782502240000,-150.0,0.00019806,2]
[426512514,1782502240000,-156.0,0.0002,2]
[426512505,1782502240000,-1630.84148816,0.00019789,2]
[426512509,1782502240000,-176.59972265,0.000199,2]
[426512521,1782502240000,-176.59972265,0.000201,2]
[426512519,1782502240000,-1834.63096609,0.000201,2]
[426512520,1782502240000,-200.0,0.000201,2]
[426512522,1782502240000,-654.92335711,0.000202,2]
[426512518,1782502240000,-160.0,0.00020007,2]
[426512497,1782502240000,-24818.74,0.00018,2]
[426512504,1782502240000,-2303.0459447,0.00019711,2]
[426512494,1782502240000,-2303.0459447,0.00017256,2]
[426512478,1782502240000,-300.0,0.00015,2]
[426512492,1782502240000,-150.06745161,0.0001628,2]
[426512474,1782502240000,-333.26194966,0.00015,2]
[426512475,1782502240000,-3005.07896221,0.00015,2]
[426512476,1782502240000,-281491.0510651,0.00015,2]
[426512477,1782502240000,-152.0,0.00015,2]
[426512479,1782502240000,-296.0,0.00015,2]
[426512480,1782502240000,-500.0,0.00015,2]
[426512482,1782502240000,-150.0,0.00015243,2]
[426512481,1782502240000,-150.0,0.00015095,2]
[426512493,1782502240000,-150.0,0.00017253,2]
[426512483,1782502240000,-150.0,0.00015391,2]
[426512495,1782502240000,-1630.84148816,0.00017344,2]
[426512485,1782502240000,-211.14775443,0.00016,2]
[426512488,1782502240000,-250.0,0.0001628,2]
[426512487,1782502240000,-250.0,0.0001628,2]
[426512508,1782502240000,-200.0,0.000199,2]
[426512486,1782502240000,-255.0,0.00016031,2]
[426512491,1782502240000,-302.85243777,0.0001628,2]
[426512490,1782502240000,-500.0,0.0001628,2]
[426512484,1782502240000,-150.0,0.00015539,2]
[426512510,1782502240000,-158.0,0.0002,2]
[426512496,1782502240000,-161.19,0.00017534,2]
[426512511,1782502240000,-654.92335711,0.0002,2]
[426512540,1782502240000,-518.0,0.00021273,2]
[426512547,1782502240000,-150.53,0.0002148,2]
[426512550,1782502240000,-500.0,0.0002188,7]
[426512548,1782502240000,-167.37,0.00021704,2]
[426512549,1782502240000,-1536.61,0.00021833,2]
[426512546,1782502240000,-302.25,0.00021456,2]
[426512554,1782502240000,-151.0,0.000219,2]
[426512556,1782502240000,-151.0,0.000219,2]
[426512552,1782502240000,-151.0,0.000219,2]
[426512551,1782502240000,-151.0,0.000219,2]
[426512555,1782502240000,-151.0,0.000219,2]
[426512553,1782502240000,-151.0,0.000219,2]
[426512558,1782502240000,-151.0,0.000219,2]
[426512557,1782502240000,-151.0,0.000219,2]
[426512559,1782502240000,-151.0,0.000219,2]
[426512561,1782502240000,-151.0,0.000219,2]
[426512562,1782502240000,-151.0,0.000219,2]
[426512560,1782502240000,-151.0,0.000219,2]
[426512516,1782502240000,-180.0,0.0002,2]
[426512542,1782502240000,-1034.57,0.00021273,2]
[426512541,1782502240000,-10315.87,0.00021273,2]
[426512489,1782502240000,-246.72502933,0.0001628,2]
[426512537,1782502240000,-180.0,0.00021,2]
[426512523,1782502240000,-1834.63096609,0.000203,2]
[426512525,1782502240000,-654.92335711,0.000204,2]
[426512528,1782502240000,-3037.7895,0.00020548,2]
[426512526,1782502240000,-1834.63096609,0.000205,2]
[426512530,1782502240000,-1834.63096609,0.000207,2]
[426512531,1782502240000,-654.92335711,0.000208,2]
[426512527,1782502240000,-176.59972265,0.000205,2]
[426512533,1782502240000,-514.65,0.00020882,2]
[426512529,1782502240000,-654.92335711,0.000206,2]
[426512512,1782502240000,-151.0,0.0002,2]
[426512532,1782502240000,-200.0,0.00020861,2]
[426512535,1782502240000,-158.0,0.00021,2]
[426512545,1782502240000,-150.0,0.00021344,2]
[426512534,1782502240000,-265.41,0.00020887,2]
[426512536,1782502240000,-156.0,0.00021,2]
[426512539,1782502240000,-519.71,0.00021243,2]
[426512544,1782502240000,-1958.26,0.00021328,2]
[426512538,1782502240000,-288.27225766,0.0002124,2]
[426512543,1782502240000,-1536.61,0.000213,2]
[426512524,1782502240000,-176.59972265,0.000203,2]
[426512601,1782502241000,-9999.99,0.00024174,2]
[426512599,1782502241000,-450.0,0.00024044,2]
[426512602,1782502241000,-288.27225766,0.0002441,2]
[426512594,1782502241000,-169.38,0.00023883,2]
[426512595,1782502241000,-245.99624032,0.00023891,7]
[426512603,1782502241000,-166.66,0.00024422,30]
[426512600,1782502241000,-4383.49,0.00024174,2]
[426512596,1782502241000,-168.0,0.00024,2]
[426512598,1782502241000,-180.0,0.00024,2]
[426512604,1782502241000,-158.7,0.00024455,2]
[426512597,1782502241000,-156.0,0.00024,2]
[426512606,1782502241000,-1000.0,0.00024658,2]
[426512616,1782502241000,-594.44015529,0.00025688,2]
[426512608,1782502241000,-396.29343686,0.00024851,2]
[426512610,1782502241000,-165.0,0.00025,2]
[426512612,1782502241000,-433.96652679,0.00025391,14]
[426512592,1782502241000,-2573.2,0.00023599,2]
[426512613,1782502241000,-649.18797024,0.00025391,14]
[426512609,1782502241000,-506.06155054,0.00024975,2]
[426512614,1782502241000,-263.11873299,0.00025688,2]
[426512615,1782502241000,-209.24526469,0.00025688,2]
[426512611,1782502241000,-184.0,0.00025,2]
[426512605,1782502241000,-2303.0459447,0.00024622,2]
[426512629,1782502241000,-385.29792313,0.00026246,2]
[426512628,1782502241000,-309.86623204,0.00026246,2]
[426512607,1782502241000,-1630.84148816,0.00024678,2]
[426512591,1782502241000,-198.14671843,0.00023595,2]
[426512589,1782502241000,-1536.61,0.0002343,2]
[426512584,1782502241000,-180.0,0.00022981,2]
[426512565,1782502241000,-151.0,0.000219,2]
[426512564,1782502241000,-151.0,0.000219,2]
[426512563,1782502241000,-151.0,0.000219,2]
[426512566,1782502241000,-151.0,0.000219,2]
[426512567,1782502241000,-151.0,0.000219,2]
[426512568,1782502241000,-151.0,0.000219,2]
[426512569,1782502241000,-151.0,0.000219,2]
[426512571,1782502241000,-4900.0,0.000219,7]
[426512570,1782502241000,-151.0,0.000219,2]
[426512572,1782502241000,-5000.0,0.00021918,2]
[426512576,1782502241000,-180.0,0.00022,2]
[426512573,1782502241000,-158.0,0.00022,2]
[426512585,1782502241000,-158.0,0.00023,2]
[426512574,1782502241000,-240.0,0.00022,2]
[426512577,1782502241000,-2303.0459447,0.00022167,2]
[426512581,1782502241000,-33683.49,0.00022408,2]
[426512578,1782502241000,-500.0,0.00022175,2]
[426512582,1782502241000,-450.0,0.00022675,2]
[426512580,1782502241000,-1536.61,0.00022365,2]
[426512579,1782502241000,-1630.84148816,0.00022233,2]
[426512587,1782502241000,-180.0,0.00023,2]
[426512588,1782502241000,-150.0,0.00023416,2]
[426512583,1782502241000,-1536.61,0.00022898,2]
[426512618,1782502241000,-185.13226725,0.0002569,2]
[426512590,1782502241000,-167.48,0.00023458,2]
[426512586,1782502241000,-156.0,0.00023,2]
[426512575,1782502241000,-156.0,0.00022,2]
[426512617,1782502241000,-187.87263613,0.0002569,2]
[426512593,1782502241000,-1128.0,0.000237,2]
[426512625,1782502241000,-410.0,0.0002603,2]
[426512651,1782502241000,-178.4496134,0.00026248,2]
[426512652,1782502241000,-269.12230831,0.00026248,2]
[426512650,1782502241000,-427.87400416,0.00026248,2]
[426512656,1782502241000,-428.03772281,0.00026262,2]
[426512661,1782502241000,-151.0,0.00026797,7]
[426512666,1782502241000,-158.7,0.00027146,2]
[426512658,1782502241000,-151.0,0.00026797,7]
[426512662,1782502241000,-56567.46325041,0.000268,2]
[426512657,1782502241000,-264.62541046,0.00026262,2]
[426512660,1782502241000,-151.0,0.00026797,7]
[426512667,1782502241000,-1500.0,0.00027397,2]
[426512665,1782502241000,-1630.84148816,0.00027122,2]
[426512664,1782502241000,-2303.0459447,0.00027078,2]
[426512668,1782502241000,-500.0,0.000275,7]
[426512663,1782502241000,-133135.46457865,0.000268,2]
[426512670,1782502241000,-151.0,0.00027843,3]
[426512669,1782502241000,-288.27225766,0.0002758,2]
[426512671,1782502241000,-151.0,0.00027997,7]
[426512672,1782502241000,-35649.52943303,0.00028,8]
[426512674,1782502241000,-150.75,0.00028299,2]
[426512676,1782502241000,-160.54538812,0.00028502,2]
[426512673,1782502241000,-210.67815293,0.00028074,2]
[426512675,1782502241000,-158.7,0.00028491,2]
[426512677,1782502241000,-500.0,0.00028572,20]
[426512679,1782502241000,-500.0,0.00028572,20]
[426512678,1782502241000,-500.0,0.00028572,20]
[426512620,1782502241000,-151.0,0.00025783,7]
[426512653,1782502241000,-305.92569889,0.00026248,2]
[426512647,1782502241000,-430.90012523,0.00026247,2]
[426512659,1782502241000,-151.0,0.00026797,7]
[426512645,1782502241000,-388.55603559,0.00026247,2]
[426512649,1782502241000,-154.69429644,0.00026248,2]
[426512619,1782502241000,-214.0188614,0.00025704,2]
[426512623,1782502241000,-223.23941195,0.00025872,2]
[426512622,1782502241000,-158.7,0.000258,2]
[426512621,1782502241000,-151.0,0.00025783,7]
[426512624,1782502241000,-878.3676,0.00025891,14]
[426512626,1782502241000,-397.0,0.00026101,2]
[426512630,1782502241000,-356.28598665,0.00026246,2]
[426512636,1782502241000,-378.75413128,0.00026246,2]
[426512632,1782502241000,-384.26823646,0.00026246,2]
[426512633,1782502241000,-526.23746598,0.00026246,2]
[426512634,1782502241000,-315.75375303,0.00026246,2]
[426512635,1782502241000,-418.49052938,0.00026246,2]
[426512631,1782502241000,-359.26909743,0.00026246,2]
[426512627,1782502241000,-210.67815294,0.00026147,2]
[426512640,1782502241000,-413.82005713,0.00026247,2]
[426512639,1782502241000,-152.6791517,0.00026247,2]
[426512648,1782502241000,-150.13678291,0.00026248,2]
[426512643,1782502241000,-412.57648793,0.00026247,2]
[426512654,1782502241000,-375.74527225,0.00026248,2]
[426512655,1782502241000,-370.26453449,0.00026248,2]
[426512646,1782502241000,-419.62012651,0.00026247,2]
[426512642,1782502241000,-152.86937073,0.00026247,2]
[426512641,1782502241000,-402.46381578,0.00026247,2]
[426512637,1782502241000,-792.58687372,0.00026246,2]
[426512638,1782502241000,-301.58168972,0.00026247,2]
[426512644,1782502241000,-415.90862654,0.00026247,2]
[426512712,1782502242000,-309.19443243,0.00028698,2]
[426512717,1782502242000,-150.37,0.00029,7]
[426512711,1782502242000,-154.0,0.00028611,30]
[426512721,1782502242000,-151.0,0.00029047,3]
[426512715,1782502242000,-150.07,0.00028863,7]
[426512719,1782502242000,-10315.87,0.00029009,7]
[426512718,1782502242000,-518.0,0.00029009,7]
[426512716,1782502242000,-923.76,0.00029,2]
[426512720,1782502242000,-1034.57,0.00029009,7]
[426512724,1782502242000,-151.0,0.00029086,7]
[426512714,1782502242000,-514.64905762,0.00028794,2]
[426512713,1782502242000,-160.54538812,0.00028776,2]
[426512725,1782502242000,-497.0,0.0002912,20]
[426512726,1782502242000,-160.54538812,0.00029324,2]
[426512737,1782502242000,-180.0,0.00029611,30]
[426512723,1782502242000,-160.54538812,0.0002905,2]
[426512736,1782502242000,-156.0,0.00029611,30]
[426512734,1782502242000,-164.0,0.00029603,30]
[426512735,1782502242000,-159.0,0.00029611,30]
[426512738,1782502242000,-157.0,0.00029611,30]
[426512732,1782502242000,-158.0,0.00029603,30]
[426512730,1782502242000,-160.54538812,0.00029598,2]
[426512729,1782502242000,-1630.84148816,0.00029567,2]
[426512728,1782502242000,-4441.69,0.00029534,2]
[426512739,1782502242000,-159.0,0.00029611,30]
[426512741,1782502242000,-350.0,0.00029786,14]
[426512701,1782502242000,-164.0,0.00028603,30]
[426512727,1782502242000,-2303.0459447,0.00029533,2]
[426512703,1782502242000,-155.0,0.00028611,30]
[426512684,1782502242000,-486.49338314,0.00028572,20]
[426512706,1782502242000,-156.0,0.00028611,30]
[426512747,1782502242000,-9900.0,0.000298,10]
[426512686,1782502242000,-500.0,0.00028572,20]
[426512685,1782502242000,-500.0,0.00028572,20]
[426512681,1782502242000,-500.0,0.00028572,20]
[426512680,1782502242000,-500.0,0.00028572,20]
[426512682,1782502242000,-500.0,0.00028572,20]
[426512683,1782502242000,-500.0,0.00028572,20]
[426512690,1782502242000,-264.76687755,0.00028572,20]
[426512687,1782502242000,-500.0,0.00028572,20]
[426512691,1782502242000,-500.0,0.00028572,20]
[426512689,1782502242000,-500.0,0.00028572,20]
[426512688,1782502242000,-500.0,0.00028572,20]
[426512695,1782502242000,-500.0,0.00028572,20]
[426512698,1782502242000,-500.0,0.00028572,20]
[426512693,1782502242000,-500.0,0.00028572,20]
[426512692,1782502242000,-500.0,0.00028572,20]
[426512696,1782502242000,-500.0,0.00028572,20]
[426512697,1782502242000,-500.0,0.00028572,20]
[426512694,1782502242000,-500.0,0.00028572,20]
[426512700,1782502242000,-158.0,0.00028603,30]
[426512699,1782502242000,-382.62798471,0.00028572,20]
[426512710,1782502242000,-159.0,0.00028611,30]
[426512708,1782502242000,-153.0,0.00028611,30]
[426512705,1782502242000,-154.0,0.00028611,30]
[426512709,1782502242000,-168.0,0.00028611,30]
[426512702,1782502242000,-158.0,0.00028603,30]
[426512707,1782502242000,-180.0,0.00028611,30]
[426512704,1782502242000,-157.0,0.00028611,30]
[426512746,1782502242000,-549.02,0.00029799,7]
[426512773,1782502242000,-168.58118638,0.000301,7]
[426512742,1782502242000,-644.74,0.00029799,7]
[426512774,1782502242000,-600.32,0.000301,10]
[426512780,1782502242000,-475.824,0.00030522,26]
[426512790,1782502242000,-159.0,0.00030611,30]
[426512782,1782502242000,-1277.0,0.00030596,2]
[426512779,1782502242000,-160.54538812,0.0003042,2]
[426512781,1782502242000,-388.0,0.00030596,2]
[426512791,1782502242000,-151.0,0.00030625,7]
[426512783,1782502242000,-1361.0,0.00030596,2]
[426512789,1782502242000,-180.0,0.00030611,30]
[426512784,1782502242000,-1229.0,0.00030596,2]
[426512786,1782502242000,-158.0,0.00030603,30]
[426512788,1782502242000,-156.0,0.00030611,30]
[426512787,1782502242000,-168.0,0.00030603,30]
[426512785,1782502242000,-3649.0,0.00030596,2]
[426512792,1782502242000,-5000.0,0.00030628,3]
[426512796,1782502242000,-160.54538812,0.00030694,2]
[426512803,1782502242000,-497.0,0.0003104,20]
[426512795,1782502242000,-666.38,0.00030693,7]
[426512794,1782502242000,-552.1,0.00030693,7]
[426512793,1782502242000,-625.4,0.00030693,7]
[426512802,1782502242000,-1000.0,0.00031,7]
[426512801,1782502242000,-158.05,0.00031,7]
[426512798,1782502242000,-164.25495325,0.00030761,7]
[426512799,1782502242000,-160.54538819,0.00030968,2]
[426512800,1782502242000,-10824.55745328,0.00031,2]
[426512743,1782502242000,-569.17,0.00029799,7]
[426512804,1782502242000,-200.0,0.000315,10]
[426512771,1782502242000,-778758.30261691,0.000301,7]
[426512777,1782502242000,-160.54538812,0.00030146,2]
[426512797,1782502242000,-288.27225766,0.0003075,2]
[426512775,1782502242000,-294.4313207,0.00030136,7]
[426512776,1782502242000,-162.59983811,0.00030136,7]
[426512744,1782502242000,-687.0,0.00029799,7]
[426512753,1782502242000,-937.38713,0.000298,2]
[426512748,1782502242000,-937.38712,0.000298,2]
[426512750,1782502242000,-937.38713,0.000298,2]
[426512749,1782502242000,-937.38712,0.000298,2]
[426512751,1782502242000,-937.38712,0.000298,2]
[426512752,1782502242000,-937.38713,0.000298,2]
[426512755,1782502242000,-1958.26,0.00029859,2]
[426512765,1782502242000,-310.57570885,0.0003009,2]
[426512754,1782502242000,-200.0,0.00029859,2]
[426512763,1782502242000,-678.0,0.00030021,5]
[426512764,1782502242000,-497.0,0.0003008,20]
[426512756,1782502242000,-160.54538812,0.00029872,2]
[426512740,1782502242000,-160.0,0.00029611,30]
[426512766,1782502242000,-151.0,0.00030097,7]
[426512772,1782502242000,-158.05,0.000301,7]
[426512770,1782502242000,-6503.17886444,0.000301,5]
[426512769,1782502242000,-152.94328104,0.00030099,2]
[426512757,1782502242000,-14800.0,0.000299,10]